Workbook

Sheet Sheet1
B1: Table of Macrostate Properties of Two-State Paramagnet
C4: Energy | D4: Magnetisation | E4: Multiplicity | F4: Entropy | G4: Temperature | H4: Heat Capacity
B5: N­ | C5: U/mB | D5: M/Nm | E5: W | F5: S/k | G5: kT/mB | H5: C/Nk
B7: 0 | C7: =-1*B7+1*(100-B7) -> 100 | D7: =(1*B7-1*(100-B7))/100 -> -1 | E7: =FACT(100)/FACT(B7)/FACT(100-B7) -> 1 | F7: =LN(E7) -> 0 | G7: 0 | H7: --
B8: 1 | C8: =-1*B8+1*(100-B8) -> 98 | D8: =(1*B8-1*(100-B8))/100 -> -0.98 | E8: =FACT(100)/FACT(B8)/FACT(100-B8) -> 100 | F8: =LN(E8) -> 4.605170186 | G8: =(C9-C7)/(F9-F7) -> -0.4701931151 | H8: =(C9-C7)/(G9-G7)/100 -> 0.0738832786
B9: 2 | C9: 96 | D9: -0.96 | E9: 4950 | F9: 8.507142856 | G9: =(C10-C8)/(F10-F8) -> -0.5413944909 | H9: =(C10-C8)/(G10-G8)/100 -> 0.3098894045
B10: 3 | C10: 94 | D10: -0.94 | E10: 161700 | F10: 11.99349805 | G10: -0.5992714231 | H10: 0.3645693024
B11: 4 | C11: 92 | D11: -0.92 | E11: 3921225 | F11: 15.18191466 | G11: -0.6511129991 | H11: 0.3984347707
B12: 5 | C12: 90 | D12: -0.9 | E12: 75287520 | F12: 18.13682494 | G12: -0.6996642677 | H12: 0.4200577912
B13: 6 | C13: 88 | D13: -0.88 | E13: 1192052400 | F13: 20.89894236 | G13: -0.7463379916 | H13: 0.4332293571
B14: 7 | C14: 86 | D14: -0.86 | E14: 1.60075608e+10 | F14: 23.496327 | G14: -0.7919941141 | H14: 0.4401355499
B15: 8 | C15: 84 | D15: -0.84 | E15: 1.860878943e+11 | F15: 25.94948495 | G15: -0.8372190849 | H15: 0.4422080157
B16: 9 | C16: 82 | D16: -0.82 | E16: 1902231808400 | F16: 28.27404895 | G16: -0.8824492813 | H16: 0.4404582676
B17: 10 | C17: 80 | D17: -0.8 | E17: 1.731030946e+13 | F17: 30.48232336 | G17: -0.928033591 | H17: 0.4356383395
B18: 11 | C18: 78 | D18: -0.78 | E18: 141629804643600 | F18: 32.58423776 | G18: -0.9742685643 | H18: 0.4283283286
B19: 12 | C19: 76 | D19: -0.76 | E19: 1.050421051e+15 | F19: 34.58796748 | G19: -1.021419896 | H19: 0.4189884144
B20: 13 | C20: 74 | D20: -0.74 | E20: 7110542499799204 | F20: 36.50035494 | G20: -1.069736598 | H20: 0.4079917969
B21: 14 | C21: 72 | D21: -0.72 | E21: 4.418694268e+16 | F21: 38.32720573 | G21: -1.119461083 | H21: 0.3956465969
B22: 15 | C22: 70 | D22: -0.7 | E22: 2.533384713e+17 | F22: 40.07350282 | G22: -1.170836924 | H22: 0.3822109919
B23: 16 | C23: 68 | D23: -0.68 | E23: 1.345860629e+18 | F23: 41.74356536 | G23: -1.224115321 | H23: 0.3679040148
B24: 17 | C24: 66 | D24: -0.66 | E24: 6.650134873e+18 | F24: 43.34116881 | G24: -1.279560935 | H24: 0.3529134624
B25: 18 | C25: 64 | D25: -0.64 | E25: 3.06645108e+19 | F25: 44.86963766 | G25: -1.337457554 | H25: 0.3374018186
B26: 19 | C26: 62 | D26: -0.62 | E26: 1.323415729e+20 | F26: 46.33191793 | G26: -1.398113941 | H26: 0.3215107765
B27: 20 | C27: 60 | D27: -0.6 | E27: 5.359833704e+20 | F27: 47.73063481 | G27: -1.46187018 | H27: 0.3053647483
B28: 21 | C28: 58 | D28: -0.58 | E28: 2.041841411e+21 | F28: 49.06813901 | G28: -1.529104831 | H28: 0.2890736297
B29: 22 | C29: 56 | D29: -0.56 | E29: 7.332066885e+21 | F29: 50.34654441 | G29: -1.600243231 | H29: 0.2727350063
B30: 23 | C30: 54 | D30: -0.54 | E30: 2.486527031e+22 | F30: 51.56775902 | G30: -1.675767339 | H30: 0.2564359328
B31: 24 | C31: 52 | D31: -0.52 | E31: 7.977607557e+22 | F31: 52.73351061 | G31: -1.756227611 | H31: 0.2402543852
B32: 25 | C32: 50 | D32: -0.5 | E32: 2.425192697e+23 | F32: 53.84536812 | G32: -1.842257536 | H32: 0.2242604551
B33: 26 | C33: 48 | D33: -0.48 | E33: 6.995748165e+23 | F33: 54.9047597 | G33: -1.934591647 | H33: 0.2085173404
B34: 27 | C34: 46 | D34: -0.46 | E34: 1.917353201e+24 | F34: 55.91298793 | G34: -2.034088105 | H34: 0.1930821744
B35: 28 | C35: 44 | D35: -0.44 | E35: 4.998813702e+24 | F35: 56.87124286 | G35: -2.141757328 | H35: 0.178006723
B36: 29 | C36: 42 | D36: -0.42 | E36: 1.241084781e+25 | F36: 57.78061315 | G36: -2.258798718 | H36: 0.1633379758
B37: 30 | C37: 40 | D37: -0.4 | E37: 2.937233982e+25 | F37: 58.64209564 | G37: -2.386648326 | H37: 0.1491186485
B38: 31 | C38: 38 | D38: -0.38 | E38: 6.632463831e+25 | F38: 59.45660368 | G38: -2.527041493 | H38: 0.1353876139
B39: 32 | C39: 36 | D39: -0.36 | E39: 1.430125013e+26 | F39: 60.22497428 | G39: -2.682096328 | H39: 0.1221802722
B40: 33 | C40: 34 | D40: -0.34 | E40: 2.94692427e+26 | F40: 60.94797442 | G40: -2.854426588 | H40: 0.1095288698
B41: 34 | C41: 32 | D41: -0.32 | E41: 5.807174297e+26 | F41: 61.62630652 | G41: -3.047296846 | H41: 0.09746277664
B42: 35 | C42: 30 | D42: -0.3 | E42: 1.095067153e+27 | F42: 62.2606132 | G42: -3.264839685 | H42: 0.08600872611
B43: 36 | C43: 28 | D43: -0.28 | E43: 1.977204582e+27 | F43: 62.85148153 | G43: -3.512365936 | H43: 0.07519102423
B44: 37 | C44: 26 | D44: -0.26 | E44: 3.420029547e+27 | F44: 63.3994467 | G44: -3.796818075 | H44: 0.06503173212
B45: 38 | C45: 24 | D45: -0.24 | E45: 5.670048987e+27 | F45: 63.90499527 | G45: -4.127450276 | H45: 0.05555082516
B46: 39 | C46: 22 | D46: -0.22 | E46: 9.01392403e+27 | F46: 64.36856801 | G46: -4.516879386 | H46: 0.0467663321
B47: 40 | C47: 20 | D47: -0.2 | E47: 1.374623415e+28 | F47: 64.79056242 | G47: -4.982766445 | H47: 0.03869445638
B48: 41 | C48: 18 | D48: -0.18 | E48: 2.011644021e+28 | F48: 65.17133491 | G48: -5.550619196 | H48: 0.03134968196
B49: 42 | C49: 16 | D49: -0.16 | E49: 2.825880887e+28 | F49: 65.51120274 | G49: -6.258696454 | H49: 0.02474486518
B50: 43 | C50: 14 | D50: -0.14 | E50: 3.81165329e+28 | F50: 65.81044563 | G50: -7.167116183 | H50: 0.01889131433
B51: 44 | C51: 12 | D51: -0.12 | E51: 4.93782358e+28 | F51: 66.06930727 | G51: -8.37607163 | H51: 0.01379885805
B52: 45 | C52: 10 | D52: -0.1 | E52: 6.144847121e+28 | F52: 66.28799647 | G52: -10.06590678 | H52: 0.009475903518
B53: 46 | C53: 8 | D53: -0.08 | E53: 7.347099819e+28 | F53: 66.46668826 | G53: -12.59730499 | H53: 0.00592948543
B54: 47 | C54: 6 | D54: -0.06 | E54: 8.441348728e+28 | F54: 66.6055247 | G54: -16.81185472 | H54: 0.003165306285
B55: 48 | C55: 4 | D55: -0.04 | E55: 9.320655888e+28 | F55: 66.7046156 | G55: -25.23431272 | H55: 0.001187768684
B56: 49 | C56: 2 | D56: -0.02 | E56: 9.891308289e+28 | F56: 66.76403902 | G56: -50.48844556
B57: 50 | C57: 0 | D57: 0 | E57: 1.008913445e+29 | F57: 66.78384165 | H57: --
B58: 51 | C58: -2 | D58: 0.02 | E58: 9.891308289e+28 | F58: 66.76403902 | G58: 50.48844556
B59: 52 | C59: -4 | D59: 0.04 | E59: 9.320655888e+28 | F59: 66.7046156 | G59: 25.23431272 | H59: 0.001187768684
B60: 53 | C60: -6 | D60: 0.06 | E60: 8.441348728e+28 | F60: 66.6055247 | G60: 16.81185472 | H60: 0.003165306285
B61: 54 | C61: -8 | D61: 0.08 | E61: 7.347099819e+28 | F61: 66.46668826 | G61: 12.59730499 | H61: 0.00592948543
B62: 55 | C62: -10 | D62: 0.1 | E62: 6.144847121e+28 | F62: 66.28799647 | G62: 10.06590678 | H62: 0.009475903518
B63: 56 | C63: -12 | D63: 0.12 | E63: 4.93782358e+28 | F63: 66.06930727 | G63: 8.37607163 | H63: 0.01379885805
B64: 57 | C64: -14 | D64: 0.14 | E64: 3.81165329e+28 | F64: 65.81044563 | G64: 7.167116183 | H64: 0.01889131433
B65: 58 | C65: -16 | D65: 0.16 | E65: 2.825880887e+28 | F65: 65.51120274 | G65: 6.258696454 | H65: 0.02474486518
B66: 59 | C66: -18 | D66: 0.18 | E66: 2.011644021e+28 | F66: 65.17133491 | G66: 5.550619196 | H66: 0.03134968196
B67: 60 | C67: -20 | D67: 0.2 | E67: 1.374623415e+28 | F67: 64.79056242 | G67: 4.982766445 | H67: 0.03869445638
B68: 61 | C68: -22 | D68: 0.22 | E68: 9.01392403e+27 | F68: 64.36856801 | G68: 4.516879386 | H68: 0.0467663321
B69: 62 | C69: -24 | D69: 0.24 | E69: 5.670048987e+27 | F69: 63.90499527 | G69: 4.127450276 | H69: 0.05555082516
B70: 63 | C70: -26 | D70: 0.26 | E70: 3.420029547e+27 | F70: 63.3994467 | G70: 3.796818075 | H70: 0.06503173212
B71: 64 | C71: -28 | D71: 0.28 | E71: 1.977204582e+27 | F71: 62.85148153 | G71: 3.512365936 | H71: 0.07519102423
B72: 65 | C72: =-1*B72+1*(100-B72) -> -30 | D72: =(1*B72-1*(100-B72))/100 -> 0.3 | E72: =FACT(100)/FACT(B72)/FACT(100-B72) -> 1.095067153e+27 | F72: =LN(E72) -> 62.2606132 | G72: 3.264839685 | H72: 0.08600872611
B73: 66 | C73: -32 | D73: 0.32 | E73: 5.807174297e+26 | F73: 61.62630652 | G73: =(C74-C72)/(F74-F72) -> 3.047296846 | H73: =(C74-C72)/(G74-G72)/100 -> 0.09746277664
B74: 67 | C74: -34 | D74: 0.34 | E74: 2.94692427e+26 | F74: 60.94797442 | G74: 2.854426588 | H74: 0.1095288698
B75: 68 | C75: -36 | D75: 0.36 | E75: 1.430125013e+26 | F75: 60.22497428 | G75: 2.682096328 | H75: 0.1221802722
B76: 69 | C76: -38 | D76: 0.38 | E76: 6.632463831e+25 | F76: 59.45660368 | G76: 2.527041493 | H76: 0.1353876139
B77: 70 | C77: -40 | D77: 0.4 | E77: 2.937233982e+25 | F77: 58.64209564 | G77: 2.386648326 | H77: 0.1491186485
B78: 71 | C78: -42 | D78: 0.42 | E78: 1.241084781e+25 | F78: 57.78061315 | G78: 2.258798718 | H78: 0.1633379758
B79: 72 | C79: -44 | D79: 0.44 | E79: 4.998813702e+24 | F79: 56.87124286 | G79: 2.141757328 | H79: 0.178006723
B80: 73 | C80: -46 | D80: 0.46 | E80: 1.917353201e+24 | F80: 55.91298793 | G80: 2.034088105 | H80: 0.1930821744
B81: 74 | C81: -48 | D81: 0.48 | E81: 6.995748165e+23 | F81: 54.9047597 | G81: 1.934591647 | H81: 0.2085173404
B82: 75 | C82: -50 | D82: 0.5 | E82: 2.425192697e+23 | F82: 53.84536812 | G82: 1.842257536 | H82: 0.2242604551
B83: 76 | C83: -52 | D83: 0.52 | E83: 7.977607557e+22 | F83: 52.73351061 | G83: 1.756227611 | H83: 0.2402543852
B84: 77 | C84: -54 | D84: 0.54 | E84: 2.486527031e+22 | F84: 51.56775902 | G84: 1.675767339 | H84: 0.2564359328
B85: 78 | C85: -56 | D85: 0.56 | E85: 7.332066885e+21 | F85: 50.34654441 | G85: 1.600243231 | H85: 0.2727350063
B86: 79 | C86: -58 | D86: 0.58 | E86: 2.041841411e+21 | F86: 49.06813901 | G86: 1.529104831 | H86: 0.2890736297
B87: 80 | C87: -60 | D87: 0.6 | E87: 5.359833704e+20 | F87: 47.73063481 | G87: 1.46187018 | H87: 0.3053647483
B88: 81 | C88: -62 | D88: 0.62 | E88: 1.323415729e+20 | F88: 46.33191793 | G88: 1.398113941 | H88: 0.3215107765
B89: 82 | C89: -64 | D89: 0.64 | E89: 3.06645108e+19 | F89: 44.86963766 | G89: 1.337457554 | H89: 0.3374018186
B90: 83 | C90: -66 | D90: 0.66 | E90: 6.650134873e+18 | F90: 43.34116881 | G90: 1.279560935 | H90: 0.3529134624
B91: 84 | C91: -68 | D91: 0.68 | E91: 1.345860629e+18 | F91: 41.74356536 | G91: 1.224115321 | H91: 0.3679040148
B92: 85 | C92: -70 | D92: 0.7 | E92: 2.533384713e+17 | F92: 40.07350282 | G92: 1.170836924 | H92: 0.3822109919
B93: 86 | C93: -72 | D93: 0.72 | E93: 4.418694268e+16 | F93: 38.32720573 | G93: 1.119461083 | H93: 0.3956465969
B94: 87 | C94: -74 | D94: 0.74 | E94: 7110542499799205 | F94: 36.50035494 | G94: 1.069736598 | H94: 0.4079917969
B95: 88 | C95: -76 | D95: 0.76 | E95: 1.050421051e+15 | F95: 34.58796748 | G95: 1.021419896 | H95: 0.4189884144
B96: 89 | C96: -78 | D96: 0.78 | E96: 141629804643600 | F96: 32.58423776 | G96: 0.9742685643 | H96: 0.4283283286
B97: 90 | C97: -80 | D97: 0.8 | E97: 1.731030946e+13 | F97: 30.48232336 | G97: 0.928033591 | H97: 0.4356383395
B98: 91 | C98: -82 | D98: 0.82 | E98: 1902231808400 | F98: 28.27404895 | G98: 0.8824492813 | H98: 0.4404582676
B99: 92 | C99: -84 | D99: 0.84 | E99: 1.860878943e+11 | F99: 25.94948495 | G99: 0.8372190849 | H99: 0.4422080157
B100: 93 | C100: -86 | D100: 0.86 | E100: 1.60075608e+10 | F100: 23.496327 | G100: 0.7919941141 | H100: 0.4401355499
B101: 94 | C101: -88 | D101: 0.88 | E101: 1192052400 | F101: 20.89894236 | G101: 0.7463379916 | H101: 0.4332293571
B102: 95 | C102: -90 | D102: 0.9 | E102: 75287520 | F102: 18.13682494 | G102: 0.6996642677 | H102: 0.4200577912
B103: 96 | C103: -92 | D103: 0.92 | E103: 3921225 | F103: 15.18191466 | G103: 0.6511129991 | H103: 0.3984347707
B104: 97 | C104: -94 | D104: 0.94 | E104: 161700 | F104: 11.99349805 | G104: 0.5992714231 | H104: 0.3645693024
B105: 98 | C105: -96 | D105: 0.96 | E105: 4950 | F105: 8.507142856 | G105: 0.5413944909 | H105: 0.3098894045
B106: 99 | C106: -98 | D106: 0.98 | E106: 100 | F106: 4.605170186 | G106: 0.4701931151 | H106: 0.0738832786
B107: 100 | C107: -100 | D107: 1 | E107: 1 | F107: 0 | G107: 0 | H107: --

Sheet Sheet2

Sheet Sheet3
